Cogmind - Beta 17.1 @@@ ROGUE MODE // 2026.09.02 @ 22:11:01 Player: frazz Result: Destroyed by H-55 Commando with Assault Rifle Performance ------------- Evolutions (1) 500 Regions Visited (5) 1000 Robots Destroyed (40) 200 Value Destroyed (1051) 1051 Prototype IDs (24) 480 Alien Tech Used (0) 0 Bonus (464) 464 TOTAL SCORE: 3695 Bonus ------- Follower Combat Kills 164 Aligned with FarCom 300 Cogmind --------- Core Integrity 0/400 Matter 300/300 Energy 250/250 System Corruption 5% Temperature Cool (16) Movement Walking (120) Location -9/Exiles Parts ------- > --- POWER (1) -------- Ion Engine > --- PROPULSION (3) --- Improved Aluminum Leg > --- UTILITY (3) ------ Small Storage Unit Improved Signal Interpreter > --- WEAPON (2) ------- (None) > --- INVENTORY (8) ---- Light Treads Aluminum Leg Aluminum Leg Small Storage Unit Sensor Array Experimental Sensor Array Improved Signal Interpreter Skeleton Box Peak State ------------ > --- POWER ------------ Improved Ion Engine > --- PROPULSION ------- Aluminum Leg Aluminum Leg Improved Aluminum Leg > --- UTILITY ---------- Small Storage Unit Experimental Sensor Array Improved Signal Interpreter > --- WEAPON ----------- Small Laser Light Assault Rifle > --- INVENTORY -------- Ion Engine Light Treads Light Treads Aluminum Leg Small Storage Unit Sensor Array Improved Signal Interpreter Light Armor Plating [Rating: 22] Favorites ----------- Power Ion Engine Engine Ion Engine Propulsion Aluminum Leg Leg Aluminum Leg Utility Small Storage Unit Device Experimental Sensor Array Storage Small Storage Unit Processor Improved Signal Interpreter Protection Light Armor Plating Weapon Light Assault Rifle Energy Gun Small Laser Ballistic Gun Light Assault Rifle Build | -11 -10 -10 -9 -9 -9 ------- Run | Yrd Mat Min Mat Min Exi Slots Evolved 2 | . . . 2 . . Power . | . . . . . . Propulsion 1 | . . . 1 . . Utility 1 | . . . 1 . . Weapon . | . . . . . . Parts Attached 26 | 7 1 . 15 1 2 Power 4 | 1 . . 2 1 . Engine 4 | 1 . . 2 1 . Core . | . . . . . . Reactor . | . . . . . . Propulsion 9 | 2 . . 6 . 1 Treads . | . . . . . . Leg 9 | 2 . . 6 . 1 Wheel . | . . . . . . Hover . | . . . . . . Flight . | . . . . . . Utility 7 | 2 . . 4 . 1 Device 2 | 1 . . 1 . . Storage 1 | 1 . . . . . Processor 2 | . . . 2 . . Hackware . | . . . . . . Protection 2 | . . . 1 . 1 Artifact . | . . . . . . Weapon 6 | 2 1 . 3 . . Energy Gun 1 | . . . 1 . . Energy Cannon . | . . . . . . Ballistic Gun 5 | 2 1 . 2 . . Ballistic Cannon . | . . . . . . Launcher . | . . . . . . Special Weapon . | . . . . . . Impact Weapon . | . . . . . . Slashing Weapon . | . . . . . . Piercing Weapon . | . . . . . . Special Melee Weapon . | . . . . . . Unidentified Prototypes 1 | . . . 1 . . Parts Lost 16 | . 1 . 8 1 6 Power 3 | . . . 2 1 . Propulsion 7 | . . . 4 . 3 Utility 2 | . . . 1 . 1 Weapon 4 | . 1 . 1 . 2 Highest Loss Streak 4 | . 1 . 4 1 4 To Critical Strikes . | . . . . . . Average Backups 6 | 3 7 7 7 7 7 Power . | 1 1 2 . . . Propulsion 2 | . 2 2 2 3 2 Utility 3 | . 2 3 3 4 4 Weapon . | 1 . . . . . Tool/Special . | . . . . . . Unused Backups 10 | . . 1 3 . 6 Power 2 | . . . 2 . . Propulsion 2 | . . . . . 2 Utility 5 | . . 1 1 . 3 Weapon . | . . . . . . Tool/Special 1 | . . . . . 1 Average Slot Usage (%) 97 | . 98 100 96 99 98 Engine 11 | . 14 14 10 10 11 Leg 30 | . 28 28 30 33 32 Device 11 | . 14 14 11 11 9 Storage 11 | . 14 14 11 11 11 Processor 8 | . . . 10 11 11 Energy Gun 6 | . . . 6 11 11 Ballistic Gun 16 | . 26 28 15 11 9 Peak Build Rating 22 | 7 8 8 22 22 21 Average Rating 15 | 6 7 7 18 20 19 On Entrance 10 | . 7 7 8 22 20 Avg Prop Armor Cover (%) . | . . . . . . Naked Turns . | . . . . . . Heaviest Build 16 | 14 15 15 16 15 14 Greatest Support 36 | 20 20 20 36 33 33 Greatest Overweight (x) 1 | . . . 1 . . Average Overweight (x) . | . . . . . . Largest Inventory Capacity 8 | 8 8 8 8 8 8 Average Capacity 7 | 7 8 8 8 8 8 Most Carried 8 | 7 8 8 8 8 8 Average Carried 6 | 3 7 7 7 7 7 Final Capacity 8 | 8 8 8 8 8 8 Final Carried 8 | 7 7 8 8 7 8 Class Distribution -------------------- 53% | Scavenger-Mutant 46% | Mutant Dominant Class ---------------- Mutant | -10/Materials Mutant | -10/Mines Scavenger-Mutant | -9/Materials Scavenger-Mutant | -9/Mines Scavenger-Mutant | -9/Exiles Resources | -11 -10 -10 -9 -9 -9 ----------- Run | Yrd Mat Min Mat Min Exi Matter Collected 837 | 230 135 57 390 5 20 Remotely . | . . . . . . Salvage Created 1332 | 26 381 57 697 54 117 Parts 86 | 4 23 5 42 3 9 Haulers Intercepted . | . . . . . . Recyclers Shooed . | . . . . . . Parts Field Recycled . | . . . . . . Retrieved Matter . | . . . . . . Parts Self-Destructed . | . . . . . . Prevented . | . . . . . . Parts Restored . | . . . . . . Kills | -11 -10 -10 -9 -9 -9 ------- Run | Yrd Mat Min Mat Min Exi Combat Hostiles Destroyed 37 | . 13 4 14 3 3 Guns 37 | . 13 4 14 3 3 Classes Destroyed 9 | 1 2 . 4 . 2 Tunneler 1 | 1 . . . . . Recycler 1 | . . . 1 . . Watcher 1 | . . . 1 . . Swarmer 14 | . 6 4 1 3 . Grunt 16 | . 7 . 8 . 1 Brawler 1 | . . . . . 1 Duelist 2 | . . . 2 . . Sentry 3 | . . . 3 . . Programmer 1 | . . . . . 1 Best Kill Streak 4 | 1 4 3 4 3 2 Combat Bots Only 4 | . 4 3 4 3 2 Max Kills in Single Turn 2 | 1 1 2 1 1 1 Gunslinging 1 | . . 1 . . . Exploded . | . . . . . . Melee . | . . . . . . Uniques/NPCs Destroyed . | . . . . . . Combat | -11 -10 -10 -9 -9 -9 -------- Run | Yrd Mat Min Mat Min Exi Hostile Shots Fired 246 | . 53 8 95 8 82 Missed 55 | . 14 4 21 . 16 Hits 191 | . 39 4 74 8 66 Melee 19 | . . . 14 . 5 Projectile 172 | . 39 4 60 8 61 Critical Strikes 5 | . . . 5 . . Damage Taken 2245 | . 420 31 1156 63 575 Core 496 | . 79 7 290 23 97 Absorbed by Shields . | . . . . . . Regen/Repaired (Parts) 97 | . . . 97 . . Core Remaining (%) 82 | 100 . 65 . . . Volleys Fired 150 | 3 39 6 66 5 31 Largest 2 | 2 2 2 2 2 1 Hottest 60 | 40 40 40 60 60 40 Shots Fired 237 | 6 68 12 110 10 31 Gun 237 | 6 68 12 110 10 31 Cannon . | . . . . . . Launcher . | . . . . . . Special . | . . . . . . Kinetic 192 | 6 68 12 101 5 . Thermal 45 | . . . 9 5 31 Explosive . | . . . . . . Electromagnetic . | . . . . . . Robot Hit Streak 16 | 2 16 3 10 2 11 Robot Miss Streak 3 | 2 3 2 2 2 3 Penetration Max . | . . . . . . Secondary Targets 4 | . 2 1 1 . . Max Gunslinging Chain 1 | . 1 1 1 . . Shots Hit Robots 162 | 3 46 7 79 4 23 Core Hits 74 | 1 20 4 38 3 8 Critical Kills . | . . . . . . Critical Parts Destroyed . | . . . . . . Critical Strikes . | . . . . . . Melee Attacks . | . . . . . . Impact . | . . . . . . Slashing . | . . . . . . Piercing . | . . . . . . Sneak Attacks . | . . . . . . Combat Hostiles . | . . . . . . Follow-up Attacks . | . . . . . . Damage Inflicted 1760 | 33 507 76 794 44 306 Guns 1759 | 33 507 76 794 44 305 Cannons . | . . . . . . Explosions . | . . . . . . Melee . | . . . . . . Ramming 1 | . . . . . 1 Kinetic 1358 | 33 507 76 742 . . Thermal 401 | . . . 52 44 305 Explosive . | . . . . . . Electromagnetic . | . . . . . . Impact . | . . . . . . Slashing . | . . . . . . Piercing . | . . . . . . Highest Corruption 5 | . . . . . 5 Average Corruption 3 | . . . . . 3 Corruption Purged . | . . . . . . Corruption Blocked . | . . . . . . Effects 1 | . . . . . 1 Data Loss (minor) 1 | . . . . . 1 Overload Shots . | . . . . . . Overflow Damage . | . . . . . . Projectiles . | . . . . . . Explosions . | . . . . . . Melee . | . . . . . . Knockbacks . | . . . . . . Impact . | . . . . . . Kinetic . | . . . . . . Secondary . | . . . . . . Self-Inflicted Damage . | . . . . . . Shots . | . . . . . . Rammed . | . . . . . . Targets Rammed 1 | . . . . . 1 Kicked 1 | . . . . . 1 Crushed . | . . . . . . Highest Temperature 38 | . 9 . 38 32 30 Average Temperature 12 | . 8 . 10 14 15 Received Heat Transfer 549 | . 135 . 306 . 108 Siege Activations . | . . . . . . Martial Activations . | . . . . . . Shielding Activations . | . . . . . . Robots Disrupted . | . . . . . . Combat Hostiles . | . . . . . . Robots Corrupted . | . . . . . . Combat Hostiles . | . . . . . . Parts Fried . | . . . . . . Impact Corruptions . | . . . . . . Robots Melted . | . . . . . . Combat Hostiles . | . . . . . . Parts Melted 1 | . . . . . 1 Heat Transferred 875 | . . . 125 100 650 Parts Sabotaged . | . . . . . . Parts Stolen . | . . . . . . Parts Stripped . | . . . . . . Power Chain Reactions . | . . . . . . Alert | -11 -10 -10 -9 -9 -9 ------- Run | Yrd Mat Min Mat Min Exi Maximum Alert Level 1 | . . . 1 . . Low Security (%) 87 | 100 100 100 71 100 . Level 1 12 | . . . 28 . . Level 2 . | . . . . . . Level 3 . | . . . . . . Level 4 . | . . . . . . Level 5 . | . . . . . . High Security . | . . . . . . Max Security . | . . . . . . Peak Influence 278 | 5 197 104 278 75 . Initial 64 | . . 64 25 21 . Average 74 | . 65 56 137 10 . Influence Increases 1318 | 5 359 151 658 85 60 Destroy 0b10 Robot/C 980 | . 260 120 480 60 60 Destroy 0b10 Robot/NC 15 | 5 . . 10 . . Destroy Leader 182 | . 50 20 102 10 . Allied During Kill 57 | . . 11 46 . . Successful Hack 8 | . 4 . 4 . . Destroy Structure 1 | . . . 1 . . Lose Combat Pursuer 75 | . 45 . 15 15 . Influence Decreases 1318 | 5 194 251 667 141 60 Entered New Map 176 | . . 101 40 35 . Time Decay 946 | 5 184 150 487 96 24 Lost Part 136 | . 10 . 80 10 36 Lost Ally 60 | . . . 60 . . Squads Dispatched 4 | . 2 . 2 . . Investigation 2 | . 1 . 1 . . Extermination . | . . . . . . Reinforcement 2 | . 1 . 1 . . Assault . | . . . . . . Garrison . | . . . . . . Intercept . | . . . . . . Searches Triggered . | . . . . . . Construction Impeded . | . . . . . . Haulers Reinforced . | . . . . . . Active Scanning Responses . | . . . . . . Cargo Convoy Interrupts . | . . . . . . Stealth | -11 -10 -10 -9 -9 -9 --------- Run | Yrd Mat Min Mat Min Exi Distress Signals 2 | . . . 2 . . Communications Jammed . | . . . . . . Distress Signals . | . . . . . . Times Spotted 75 | . 20 6 33 3 13 Peak Tracking Total 10 | . 6 3 7 4 10 Tactical Retreats 4 | . 2 . 1 1 . Traps | -11 -10 -10 -9 -9 -9 ------- Run | Yrd Mat Min Mat Min Exi Traps Triggered 3 | . 2 . 1 . . Indirectly . | . . . . . . Trap Hack Attempts . | . . . . . . Triggered . | . . . . . . Disarmed 4 | . 4 . . . . Reprogrammed . | . . . . . . Reused . | . . . . . . Traps Extracted . | . . . . . . Installed . | . . . . . . Triggered . | . . . . . . Machines | -11 -10 -10 -9 -9 -9 ---------- Run | Yrd Mat Min Mat Min Exi Machines Disabled . | . . . . . . Max in Single Turn . | . . . . . . Machines Repaired . | . . . . . . Machines Dismantled . | . . . . . . Machines Sabotaged . | . . . . . . Overloaded Fab Kills . | . . . . . . Hacking | -11 -10 -10 -9 -9 -9 --------- Run | Yrd Mat Min Mat Min Exi Machines Accessed 11 | . 4 . 6 . 1 Terminals 6 | . 3 . 3 . . Fabricators . | . . . . . . Repair Stations 1 | . . . 1 . . Recycling Units 3 | . 1 . 2 . . Scanalyzers . | . . . . . . Garrison Access . | . . . . . . Total Hacks 26 | . 15 . 10 . 1 Successful 10 | . 4 . 5 . 1 Failed 16 | . 11 . 5 . . Catastrophic . | . . . . . . Database Lockouts . | . . . . . . Manual 6 | . 3 . 1 . 2 Terminals 18 | . 13 . 5 . . Fabricators . | . . . . . . Repair Stations 2 | . . . 2 . . Recycling Units 5 | . 2 . 3 . . Scanalyzers . | . . . . . . Garrison Access . | . . . . . . Terminal Hacks 7 | . 4 . 2 . 1 Record 1 | . 1 . . . . Alert Level 1 | . 1 . . . . Locate Traps 2 | . 1 . 1 . . Disarm Traps 1 | . 1 . . . . Investigation Status 1 | . . . 1 . . Proto ID Catalog 1 | . . . . . 1 Fabricator Hacks . | . . . . . . Repair Station Hacks 2 | . . . 2 . . Scan Component 1 | . . . 1 . . Repair 1 | . . . 1 . . Recycling Unit Hacks 1 | . . . 1 . . Retrieve Components 1 | . . . 1 . . Scanalyzer . | . . . . . . Garrison Access Hacks . | . . . . . . Unauthorized Hacks . | . . . . . . Terminals . | . . . . . . Fabricators . | . . . . . . Repair Stations . | . . . . . . Recycling Units . | . . . . . . Scanalyzers . | . . . . . . Garrison Access . | . . . . . . Data Cores Recovered . | . . . . . . Used . | . . . . . . Hacking Detections 9 | . 4 . 5 . . Full Trace Events . | . . . . . . Feedback Events . | . . . . . . Feedback Blocked . | . . . . . . Robot Schematics Acquired . | . . . . . . Robots Built . | . . . . . . Authchips . | . . . . . . Time . | . . . . . . Total Robot Build Rating . | . . . . . . Part Schematics Acquired . | . . . . . . Parts Built . | . . . . . . Authchips . | . . . . . . Time . | . . . . . . Total Part Build Rating . | . . . . . . Part Studies Acquired . | . . . . . . Parts Repaired 1 | . . . 1 . . Time 32 | . . . 32 . . Parts Recycled . | . . . . . . Recycled Matter . | . . . . . . Retrieved Matter . | . . . . . . Retrieved Components 2 | . . . 2 . . Parts Scanalyzed . | . . . . . . Part Schematics Acquired . | . . . . . . Parts Damaged . | . . . . . . Bothacking | -11 -10 -10 -9 -9 -9 ------------ Run | Yrd Mat Min Mat Min Exi Used RIF Installer . | . . . . . . Robots Hacked . | . . . . . . Non-combat . | . . . . . . Combat . | . . . . . . Robot Hacks Applied . | . . . . . . Relay Couplers Released . | . . . . . . Fabnet Peak Effective % . | . . . . . . Robots Rewired . | . . . . . . Allies Hacked . | . . . . . . Hacks Repelled . | . . . . . . Allies | -11 -10 -10 -9 -9 -9 -------- Run | Yrd Mat Min Mat Min Exi Total Allies 3 | . . 3 . . . Largest Group 3 | . . 3 3 . . Highest-Rated Group 40 | . . 40 40 . . Highest-Rated Ally 16 | . . 16 16 . . Total Orders . | . . . . . . Ally Attacks 42 | . . 10 32 . . Total Damage 407 | . . 95 312 . . Kills 12 | . . 2 10 . . Allies Corrupted . | . . . . . . Allies Melted . | . . . . . . Intel | -11 -10 -10 -9 -9 -9 ------- Run | Yrd Mat Min Mat Min Exi Active Infowar (turns) 4067 | 490 587 303 1462 640 585 Sensors 2687 | . . . 1462 640 585 Seismic 1482 | 490 587 303 102 . . Robot Analysis Total . | . . . . . . Derelict Logs Recovered 2 | . . 1 . 1 . Drone Launches . | . . . . . . Drone Recoveries . | . . . . . . Exploration | -11 -10 -10 -9 -9 -9 ------------- Run | Yrd Mat Min Mat Min Exi Turns Passed 4334 | 588 587 303 1555 640 661 Spaces Moved 2431 | 248 236 197 927 472 351 Core 27 | 27 . . . . . Treads . | . . . . . . Legs 2404 | 221 236 197 927 472 351 Wheels . | . . . . . . Hover . | . . . . . . Flight . | . . . . . . Fastest Speed 50 | 50 120 120 120 120 120 Average Speed 119 | 112 120 120 120 120 120 Slowest Speed 190 | 120 120 120 190 120 120 Overloaded Moves . | . . . . . . Propulsion Burnouts . | . . . . . . Robots Hopped . | . . . . . . Potential Cave-ins . | . . . . . . Cave-ins Triggered . | . . . . . . Exploration Rate (%) 53 | 14 31 57 67 92 60 Regions Visited 5 Branch Regions 3 Pre-discovered Areas . | . . . . . . Known Exits Taken 2 | . . . 1 1 . Unknown Exits Taken 3 | 1 1 1 . . . Scrap Searched 3 | . . . . 3 . Spaces Dug . | . . . . . . Terrain Destroyed . | . . . . . . Melee . | . . . . . . Projectile . | . . . . . . AOE . | . . . . . . Terrain Rammed . | . . . . . . Walls Destroyed . | . . . . . . Machines Disabled . | . . . . . . Actions | -11 -10 -10 -9 -9 -9 --------- Run | Yrd Mat Min Mat Min Exi Total 3653 | 552 478 252 1275 536 560 Wait 979 | 281 198 47 223 59 171 Move 2426 | 247 235 196 926 471 351 Hop . | . . . . . . Pick Up 49 | 14 3 2 27 . 3 Fast Attach . | . . . . . . Attach 28 | 7 1 . 18 1 1 Detach . | . . . . . . Swap 3 | . . . 2 . 1 Drop 17 | . 2 1 13 . 1 Fire 150 | 3 39 6 66 5 31 Melee . | . . . . . . Ram . | . . . . . . Kick 1 | . . . . . 1 Crush . | . . . . . . Escape Stasis . | . . . . . . Rewire . | . . . . . . Trap . | . . . . . . Miscellaneous . | . . . . . . Route ------- -11/Scrapyard -10/Materials -10/Mines -9/Materials (discovered 3 exits: *Mat x2 / *Min) -9/Mines (discovered 2 exits: *Mat / *Exi) -9/Exiles (discovered 1 exit: *Min) History --------- Turn | Location | Event 19 | -11/Scrapyard | Discovered new exit (range 15) 589 | -11/Scrapyard | Entered Materials 590 | -10/Materials | Build established: Mutant 1114 | -10/Materials | Discovered new exit (range 16) 1176 | -10/Materials | Entered Mines 1368 | -10/Mines | Found a damaged Exp. Sensor Array with a note attached 1371 | -10/Mines | Found Prototype Device 1409 | -10/Mines | Assisted by bots powering up and referring to "LRC-V3" 1473 | -10/Mines | Discovered new exit (range 6) 1479 | -10/Mines | Entered Materials 1479 | -9/Materials | Accompanied by 3 allies 1479 | -9/Materials | Evolved 2 slots: Propulsion x1, Utility x1 1479 | -9/Materials | Identified Exp. Sensor Array 1480 | -9/Materials | Identified exit to Mines 1827 | -9/Materials | Lost 3 allies 2009 | -9/Materials | Lost 3 parts (2n1w) 2011 | -9/Materials | Discovered new exit (range 16) 2028 | -9/Materials | Identified exit to Materials 2083 | -9/Materials | Core integrity fell below 50% 2115 | -9/Materials | Lost 4 parts (1p2n1u) 2248 | -9/Materials | Discovered exit to Materials (range 5) 2337 | -9/Materials | Repaired Imp. Aluminum Leg 2396 | -9/Materials | Build established: Scavenger-Mutant 3034 | -9/Materials | Entered Mines 3087 | -9/Mines | Learned 4 Materials zone layouts 3089 | -9/Mines | Discovered exit to Materials (range 12) 3403 | -9/Mines | Found a hidden stash of uninstalled traps 3668 | -9/Mines | Deemed a non-threat by the Exiles lab entrance 3669 | -9/Mines | Discovered new exit (range 5) 3672 | -9/Mines | Identified exit to Exiles 3674 | -9/Mines | Entered Exiles 3675 | -9/Exiles | Identified exit to Mines 3745 | -9/Exiles | Met 8R-AWN 3763 | -9/Exiles | Met EX-HEX 3812 | -9/Exiles | Met EX-BIN 3834 | -9/Exiles | Aligned with FarCom system 3835 | -9/Exiles | Given EX-Vault access code 3934 | -9/Exiles | Opened EX-Vault 3941 | -9/Exiles | Found Skeleton Box 3966 | -9/Exiles | Warned to stay clear of 0b10 Research branches 3984 | -9/Exiles | Exiles lab attacked by MAIN.C 4261 | -9/Exiles | Core integrity fell below 20% 4335 | -9/Exiles | Destroyed by H-55 Commando with Assault Rifle Last Messages --------------- Dropped Lgt. Treads. Lgt. Assault Rifle destroyed. G-34 Mercenary destroyed. Aluminum Leg destroyed. System corrupted by crushing effect (+3). Lgt. Treads melted. B-36 Bruiser destroyed. Acquired 20 matter. Destroyed Assault Rifle. Acquired Aluminum Leg. Slug penetrates Wall. P-60 Hacker destroyed. Slug penetrates Components. Components damaged. Slug penetrates Wall. Lgt. Armor Plating destroyed. System corrupted: Component data lost. Sml. Laser destroyed. Aluminum Leg destroyed. Kicked H-55 Commando out of the way. Map ----- +----------------------------------------------------+ | """""" " "" ##???#########???????? | | "" """ " #####"""""""""##????? | | " " " """ """"##???? | | "" " #???? | | " """#???? | | " "#???? | | " "##??? | | " ""###? | | """ """""" """#? | | " ######""" "#? | | " ""##????#####""" ## | | "" """##?????????##""" # | | " """##???????????#"" " | | " ""#???????????##"" | | ########??####"""" * | | " ## aa####""" %= | | """" = | | " | | """ = | | p " # | | " " "" """ ""# | | """" ""## ##""" " " ""#" "## | | "" ""####b ######""" """##"""""""##? | | " """"##??# h#????###""""###########?? | | """ """#??##gh####???######???????????? | | # ""##??#! h@%!#????????????????????? | | #"" """##???#"=gggg#????????????????????? | | ##""" ##????#" =!%"#????????????????????? | | ?##"""" ##?????#!!""!"#????????????????????? | | ???## #??????########????????????????????? | | ????##### ##??????????????????????????????????? | | ?????????# #???????????????????????????????????? | | ?????????? #???????????????????????????????????? | | ?????????? ????????????????????????????????????? | | ?????????? ??????????????????????????????????????? | | ?????????????????????????????????????????????????? | | ?????????????????????????????????????????????????? | | ?????????????????????????????????????????????????? | | ?????????????????????????????????????????????????? | | ?????????????????????????????????????????????????? | | ?????????????????????????????????????????????????? | | ?????????????????????????????????????????????????? | | ?????????????????????????????????????????????????? | | ?????????????????????????????????????????????????? | | ?????????????????????????????????????????????????? | | ?????????????????????????????????????????????????? | | ?????????????????????????????????????????????????? | | ?????????????????????????????????????????????????? | | ?????????????????????????????????????????????????? | | ?????????????????????????????????????????????????? | +----------------------------------------------------+ Best States ------------- Heat Dissipation 28 Energy Generation 12 Energy Capacity 265 Matter Stores 300 Matter Capacity 300 Sight Range 16 Robot Scan Range 20 Terrain Scan Density 10 Armor Coverage 150 Evasion (%) 55 Item Schematics ----------------- None Robot Schematics ------------------ None Fabricated ------------ Nothing Repaired ---------- Imp. Aluminum Leg | 3% | -9/Materials Studied --------- None Alien Tech Used ----------------- None Achievements -------------- I Spy Challenges ------------ None Game ------ Seed AssaultPropulsionField Manual? 0 Play Time 00:41:43 Cumulative 14.3 hours Start 2026.09.02 @ 16:52:06 End 2026.09.02 @ 22:11:01 Sessions 3 Manual Loads 0 Difficulty Rogue Special Mode None Game No. 19 Rogue 17 Adventurer 2 Explorer 0 Win Type - Total 0 Types 0/0/0/0/0/0/0/0/0/0 Lore% 14 Gallery% 16 Achievement% 16 Wizard Run 0 Options --------- Layout 1 ASCII 1 Keyboard 0 Movement Numpad Keybinds 0 Fullscreen 2 Font 24/Smallcaps Map View 50x35 Zoom Use 0% Tactical HUD 0 Map Filters NONE Filters NONE Steam 1 RUN: 1cae70ee-8e2a-4635-a310-4f71dd7500b6